bitfinex/quotes_ETHUSD_20230116
["timestamp","ask_amount","ask_price","bid_price","bid_amount"]
[1673878749098,0.5959,1540.1,1540.0,6.811]
[1673878749310,0.5959,1540.1,1540.0,16.57728678]
[1673878749629,0.5959,1540.1,1540.0,23.07078678]
[1673878749796,0.5959,1540.1,1540.0,22.63088763]
[1673878750030,0.5959,1540.1,1540.0,19.48978678]
[1673878750359,0.5959,1540.1,1540.0,28.93848533]
[1673878750960,0.5959,1540.1,1540.0,31.51013644]
[1673878751446,0.015,1540.8,1540.2,6.811]
[1673878751589,0.003,1541.1,1540.8,6.811]
[1673878751808,0.0056577,1541.2,1541.0,8.829]
[1673878752028,0.0056577,1541.2,1541.1,8.811]
[1673878752397,0.0056577,1541.2,1541.0,0.066]
[1673878752596,0.0056577,1541.2,1540.9,3.0]
[1673878752807,0.4625592,1541.2,1541.0,3.27278678]
[1673878753110,0.4625592,1541.2,1540.9,3.066]
[1673878753302,0.4625592,1541.2,1540.7,3.066]
[1673878753517,6.48937,1541.0,1540.6,0.066]
[1673878753734,0.648937,1540.9,1540.6,3.27278678]
[1673878753958,7.62240918,1541.1,1540.7,3.27278678]
[1673878753959,7.72140918,1541.1,1540.7,3.27278678]
[1673878754127,7.72140918,1541.1,1540.5,0.002]
[1673878754479,0.01995872,1541.0,1540.5,3.27278678]
[1673878754793,2.03295872,1541.0,1540.4,0.066]
[1673878754946,0.4872,1540.9,1540.4,0.004]
[1673878755161,6.51029872,1540.8,1540.2,0.59589999]
[1673878755424,0.11895872,1540.8,1540.2,3.86868677]
[1673878755589,8.51009872,1540.8,1540.2,3.86868677]
[1673878755785,15.09923872,1540.8,1540.2,0.59589999]
[1673878756266,1.13353918,1540.7,1540.2,0.59589999]
[1673878756432,21.60689392,1540.6,1540.2,0.59589999]
[1673878756627,34.26989392,1540.6,1540.2,0.59589999]
[1673878756838,0.4873,1540.5,1540.2,0.59589999]
[1673878757054,8.49182,1540.4,1540.2,0.59589999]
[1673878757297,0.099,1540.4,1540.3,3.27278678]
[1673878757509,12.663,1540.6,1540.2,0.66189999]
[1673878757738,14.16912,1540.6,1540.2,0.59589999]
[1673878757888,12.663,1540.6,1540.3,3.27278678]
[1673878758272,12.663,1540.6,1540.4,6.27278678]
[1673878759202,0.099,1540.6,1540.5,3.27278678]
[1673878759515,13.6574577,1541.2,1540.5,19.75517678]
[1673878759677,13.6574577,1541.2,1540.6,12.76362678]
[1673878759884,13.67741642,1541.2,1540.7,3.27278678]
[1673878760094,0.12461642,1541.2,1540.8,6.27278678]
[1673878760439,0.02561642,1541.2,1540.9,3.27278678]
[1673878760649,0.48251792,1541.2,1541.0,6.27278678]
[1673878760989,0.52076807,1541.2,1541.1,3.27278678]
[1673878761200,0.52076807,1541.2,1541.1,20.39993546]
[1673878761352,0.02968324,1541.5,1541.2,0.52]
[1673878761566,0.02968324,1541.5,1541.4,10.08378678]
[1673878761834,0.02968324,1541.5,1541.4,15.08378678]
[1673878761985,0.02968324,1541.5,1541.4,3.0]
[1673878762326,0.02968324,1541.5,1541.4,3.27278678]
[1673878762542,0.02968324,1541.5,1541.4,3.0]
[1673878762953,0.02968324,1541.5,1541.3,3.066]
[1673878763164,1.26968324,1541.5,1541.4,3.0]
[1673878763355,1.39953765,1541.5,1541.3,0.066]
[1673878763564,1.39953765,1541.5,1541.0,0.066]
[1673878763825,13.82403765,1541.5,1541.1,3.27278678]
[1673878764031,12.55318324,1541.5,1541.2,6.27278678]
[1673878764253,12.55318324,1541.5,1541.3,3.27278678]
[1673878764415,0.12868324,1541.5,1541.4,6.27278678]
[1673878764613,0.12868324,1541.5,1541.4,19.57138678]
[1673878764614,0.02968324,1541.5,1541.4,19.57138678]
[1673878764999,0.02968324,1541.5,1541.4,19.80138678]
[1673878765214,0.02968324,1541.5,1541.4,32.07829746]
[1673878765377,0.02968324,1541.5,1541.4,31.59129746]
[1673878766012,0.02968324,1541.5,1541.4,23.92122755]
[1673878766365,0.02968324,1541.5,1541.4,26.28898678]
[1673878767097,0.02968324,1541.5,1541.4,28.31798678]
[1673878767469,0.02968324,1541.5,1541.4,21.50698678]
[1673878767675,0.02968324,1541.5,1541.4,6.27278678]
[1673878767886,0.02968324,1541.5,1541.4,3.27278678]
[1673878768412,1.26968324,1541.5,1541.3,0.066]
[1673878768623,1.39953765,1541.5,1541.1,6.55468]
[1673878768888,1.26968324,1541.5,1541.2,3.27278678]
[1673878769300,0.02968324,1541.5,1541.3,3.27278678]
[1673878769515,0.02968324,1541.5,1541.4,3.27278678]
[1673878770841,0.02968324,1541.5,1541.4,6.27278678]
[1673878771350,1.26968324,1541.5,1541.4,3.0]
[1673878771564,1.40153352,1541.5,1541.3,0.066]
[1673878771810,1.40153352,1541.5,1541.0,6.49507]
[1673878772022,1.40153352,1541.5,1541.0,9.76185678]
[1673878772568,1.40153352,1541.5,1541.0,3.27278678]
[1673878772777,5.89994013,1541.4,1540.9,0.066]
[1673878772928,5.28578678,1541.3,1540.4,6.49163]
[1673878773139,6.48853,1541.2,1540.5,9.76407678]
[1673878773410,7.07463,1541.2,1540.6,9.76375678]
[1673878773614,8.4309,1541.2,1540.6,9.76375678]
[1673878773784,8.4309,1541.2,1540.6,11.76375678]
[1673878774000,14.91943,1541.2,1540.5,0.066]
[1673878774207,18.19221678,1541.2,1540.3,6.55798]
[1673878774422,2.0,1541.1,1540.4,3.27278678]
[1673878774659,6.68958,1541.0,1540.4,3.27278678]
[1673878774820,6.78858,1541.0,1540.4,3.27278678]
[1673878775036,13.27816,1541.0,1540.3,6.55798]
[1673878775241,13.27816,1541.0,1540.2,1.14929999]
[1673878775242,0.01995872,1540.9,1540.2,1.14929999]
[1673878775505,0.01995872,1540.9,1540.2,3.86868677]
[1673878775506,6.49047,1540.8,1540.2,3.86868677]
[1673878775662,0.649047,1540.7,1540.2,3.86868677]
[1673878775867,0.66900572,1540.7,1540.2,3.86868677]
[1673878776142,6.49097,1540.6,1540.2,3.86868677]
[1673878776373,0.099,1540.6,1540.3,3.27278678]
[1673878776589,0.021,1540.6,1540.4,6.27278678]
[1673878776748,12.8986,1540.8,1540.4,13.39185546]
[1673878777712,12.8986,1540.8,1540.4,6.90006546]
[1673878777885,12.8986,1540.8,1540.4,6.27278678]
[1673878779145,12.8986,1540.8,1540.6,12.98194]
[1673878779355,12.8986,1540.8,1540.7,3.0]
[1673878779566,12.8986,1540.8,1540.7,14.76333678]
[1673878780059,0.099,1540.8,1540.7,12.76333678]
[1673878780250,0.099,1541.2,1540.7,21.18591746]
[1673878780415,0.1050159,1541.3,1540.8,3.27278678]
[1673878780634,0.0060159,1541.3,1540.9,6.27278678]
[1673878781665,0.0060159,1541.3,1540.9,12.76243678]
[1673878781912,0.0060159,1541.3,1540.9,3.0]
[1673878782100,7.21082406,1541.3,1540.9,3.0]
[1673878782329,7.30982406,1541.3,1540.8,9.55611]
[1673878782543,0.1050159,1541.3,1540.9,5.27278678]
[1673878782777,0.0060159,1541.3,1541.0,3.27278678]
[1673878783141,6.4941059,1541.3,1540.9,0.066]
[1673878783396,8.56079193,1541.3,1540.8,9.49011]
[1673878783617,8.56079193,1541.3,1540.9,3.27278678]
[1673878783930,0.1050159,1541.3,1541.0,19.25118678]
[1673878784097,0.0060159,1541.3,1541.1,9.76156678]
[1673878784509,0.0060159,1541.3,1541.1,11.76156678]
[1673878785418,0.0060159,1541.3,1541.2,3.27278678]
[1673878785553,0.0060159,1541.3,1541.2,11.76123678]
[1673878785922,0.0060159,1541.3,1541.2,14.75832646]
[1673878786607,0.0060159,1541.3,1541.2,12.75832646]
[1673878787070,0.0090159,1541.3,1541.2,26.28777646]
[1673878787283,0.0060159,1541.3,1541.2,30.04989177]
[1673878789693,0.0060159,1541.3,1541.2,33.90207503]
[1673878789913,0.0060159,1541.3,1541.2,30.04989177]
[1673878790088,0.0060159,1541.3,1541.2,33.90207503]
[1673878790319,0.0060159,1541.3,1541.2,40.39052503]
[1673878790492,0.0060159,1541.3,1541.2,40.87762503]
[1673878790700,0.0060159,1541.3,1541.2,37.02544177]
[1673878790960,0.08793567,1541.4,1541.3,8.811]
[1673878791129,0.08793567,1541.4,1541.3,19.21633096]
[1673878791360,0.08793567,1541.4,1541.3,38.68039096]
[1673878795394,0.08793567,1541.4,1541.3,32.54784678]
[1673878795693,0.08793567,1541.4,1541.3,29.54784678]
[1673878796526,1e-08,1541.4,1541.3,29.54784678]
[1673878796855,0.02968324,1541.5,1541.3,36.40003004]
[1673878797004,0.02968324,1541.5,1541.4,36.62877004]
[1673878797211,0.02968324,1541.5,1541.4,41.31214904]
[1673878797695,0.02968324,1541.5,1541.4,37.45996578]
[1673878797876,0.02968324,1541.5,1541.4,37.94696578]
[1673878798271,0.02968324,1541.5,1541.4,38.24193753]
[1673878798479,0.02968324,1541.5,1541.4,37.45996578]
[1673878798688,0.02968324,1541.5,1541.4,41.31214904]
[1673878799479,0.00068324,1541.5,1541.4,41.31214904]
[1673878799650,0.00068324,1541.5,1541.4,41.79914904]
[1673878800067,0.02886081,1541.6,1541.5,8.811]
[1673878800288,0.00043719,1541.7,1541.6,8.811]
[1673878800491,0.03609789,1541.8,1541.7,28.27002]
[1673878800697,0.03609789,1541.8,1541.7,41.25914678]
[1673878801485,0.03609789,1542.1,1541.9,6.811]
[1673878801686,0.03609789,1542.1,1542.0,13.31378678]
[1673878801855,0.03609789,1542.1,1542.0,40.97070378]
[1673878802282,1.27609789,1542.1,1541.9,0.9787237]
[1673878802470,1.27609789,1542.1,1541.8,0.066]
[1673878802680,1.27609789,1542.1,1541.8,3.27278678]
[1673878803263,0.03609789,1542.1,1541.9,3.27278678]
[1673878803576,0.52289789,1542.1,1541.7,0.066]
[1673878803728,0.01995872,1542.0,1541.7,3.27278678]
[1673878803938,2.012,1541.9,1541.6,0.066]
[1673878804149,2.012,1541.9,1541.2,6.55431]
[1673878804416,2.0,1541.7,1541.2,3.27278678]
[1673878804580,2.0,1541.7,1541.2,3.60666546]
[1673878804795,6.48643,1541.7,1541.2,3.60666546]
[1673878805000,0.099,1541.7,1541.3,3.27278678]
[1673878805254,0.4869,1541.7,1541.4,3.27278678]
[1673878805485,0.4869,1541.8,1541.5,3.27278678]
[1673878805623,0.4869,1541.8,1541.6,3.60006546]
[1673878805831,0.4868,1541.9,1541.7,3.27278678]
[1673878806045,0.4868,1541.9,1541.6,0.39327868]
[1673878806304,6.97197,1542.0,1541.6,3.27278678]
[1673878806580,3.27278678,1541.9,1541.5,0.064]
[1673878806757,12.97268,1541.7,1541.2,0.066]
[1673878806947,13.06268,1541.7,1541.2,0.006]
[1673878807113,13.07168,1541.7,1541.0,6.48901]
[1673878807323,16.62074,1541.7,1541.1,3.27278678]
[1673878807591,0.01995872,1541.6,1541.2,3.27278678]
[1673878807905,0.01995872,1541.6,1541.3,3.27278678]
[1673878808791,0.01995872,1541.6,1541.4,3.0]
[1673878809000,0.1030977,1541.7,1541.5,3.27278678]
[1673878809233,0.0040977,1541.7,1541.6,3.32727868]
[1673878810343,0.0040977,1541.7,1541.6,3.0]
[1673878810686,0.0040977,1541.7,1541.6,6.27278678]
[1673878810896,0.0040977,1541.7,1541.6,12.98954678]
[1673878811344,0.0040977,1541.7,1541.6,14.98954678]
[1673878812530,0.0040977,1541.7,1541.6,28.28730678]
[1673878812752,0.0040977,1541.7,1541.6,31.77133846]
[1673878813789,0.0040977,1541.7,1541.6,38.25809846]
[1673878813941,0.0040977,1541.7,1541.6,6.27278678]
[1673878814149,0.0040977,1541.7,1541.6,3.0]
[1673878814356,0.0040977,1541.7,1541.5,3.066]
[1673878814569,6.4905277,1541.7,1541.5,6.27278678]
[1673878814836,6.5895277,1541.7,1541.5,6.27278678]
[1673878815062,0.1030977,1541.7,1541.5,6.27278678]
[1673878815201,0.1030977,1541.7,1541.5,6.90666546]
[1673878815202,0.0040977,1541.7,1541.5,6.90666546]
[1673878815411,0.0040977,1541.7,1541.6,3.27278678]
[1673878815683,0.0040977,1541.7,1541.6,6.27278678]
[1673878815888,0.0040977,1541.7,1541.6,12.75954678]
[1673878816212,0.0040977,1541.7,1541.6,26.05730678]
[1673878816401,0.11409789,1542.1,1541.7,8.811]
[1673878816565,0.03609789,1542.1,1541.8,19.47446678]
[1673878816933,0.03609789,1542.1,1541.9,3.27278678]
[1673878817145,0.03609789,1542.1,1542.0,3.0]
[1673878817460,0.03609789,1542.1,1542.0,19.56886678]
[1673878817673,0.03609789,1542.1,1542.0,23.05941746]
[1673878817825,0.03609789,1542.1,1542.0,29.54449746]
[1673878818032,1.27609789,1542.1,1542.0,3.27278678]
[1673878818356,1.27609789,1542.1,1541.9,0.066]
[1673878818600,1.27609789,1542.1,1541.9,3.27278678]
[1673878819025,0.03609789,1542.1,1542.0,3.27278678]
[1673878819717,0.03609789,1542.1,1542.0,6.27278678]
[1673878819978,0.03609789,1542.1,1542.0,27.53637246]
[1673878820147,0.03609789,1542.1,1542.0,27.76637246]
[1673878820347,0.03609789,1542.1,1542.0,21.28129246]
[1673878820742,0.03909789,1542.1,1542.0,21.28129246]
[1673878820891,0.03609789,1542.1,1542.0,21.28129246]
[1673878821086,0.03609789,1542.1,1542.0,21.29020239]
[1673878821291,0.03609789,1542.1,1542.0,27.77528239]
[1673878821945,1.17071787,1542.2,1542.1,8.811]
[1673878822136,1.17071787,1542.2,1542.1,31.64585335]
[1673878822663,1.17071787,1542.2,1542.1,38.13051335]
[1673878823319,0.03897762,1542.3,1542.2,8.898]
[1673878823506,0.03906407,1542.4,1542.2,18.99570786]
[1673878823731,0.03906407,1542.4,1542.3,18.96470786]
[1673878823919,0.03906407,1542.4,1542.3,34.11111557]
[1673878824653,0.03906407,1542.4,1542.3,40.59493557]
[1673878825299,0.03906407,1542.4,1542.3,38.57693557]
[1673878825743,0.03906407,1542.4,1542.3,26.82511557]
[1673878826287,0.03906407,1542.4,1542.3,20.01411557]
[1673878826438,0.03906407,1542.4,1542.3,13.53029557]
[1673878826648,0.03623715,1542.4,1542.3,29.53524678]
[1673878827174,0.05284894,1542.6,1542.3,32.53524678]
[1673878827384,0.05284894,1542.6,1542.5,10.08378678]
[1673878827595,0.05284894,1542.6,1542.5,41.02770678]
[1673878828048,0.14178597,1542.7,1542.6,9.31]
[1673878828261,0.14178597,1542.7,1542.6,31.85698146]
[1673878829061,0.14178597,1542.7,1542.6,32.23606352]
[1673878830015,0.09640975,1542.9,1542.8,6.811]
[1673878830229,0.09640975,1542.9,1542.8,39.24066678]
[1673878830690,0.0073443,1543.0,1542.8,39.61974884]
[1673878831008,1e-08,1543.0,1542.9,30.23836166]
[1673878831585,1e-08,1543.0,1542.9,30.61744372]
[1673878832264,1e-08,1543.0,1542.9,30.23836166]
[1673878832477,1e-08,1543.0,1542.8,6.54772]
[1673878832646,6.48088001,1543.0,1542.7,0.066]
[1673878832845,0.4865,1542.9,1542.4,6.49921]
[1673878833056,0.58550001,1543.0,1542.5,3.27278678]
[1673878833266,1e-08,1543.0,1542.5,3.27278678]
[1673878833537,1e-08,1543.0,1542.6,13.29212868]
[1673878833854,1e-08,1543.0,1542.9,10.08378678]
[1673878834216,1e-08,1543.0,1542.9,23.04638678]
[1673878834544,0.11478689,1543.5,1543.1,6.811]
[1673878834762,0.11478689,1543.5,1543.4,10.08378678]
[1673878834956,0.11478689,1543.5,1543.4,27.05056546]
[1673878835168,0.11478689,1543.5,1543.4,27.28056546]
[1673878835378,0.11478689,1543.5,1543.4,6.50278678]
[1673878835723,0.11478689,1543.5,1543.4,6.27278678]
[1673878836320,0.11478689,1543.5,1543.4,6.50278678]
[1673878836568,0.11478689,1543.5,1543.4,13.31378678]
[1673878836832,0.11478689,1543.5,1543.4,19.79298678]
[1673878836992,0.11478689,1543.5,1543.4,29.55393346]
[1673878838155,1.1904333,1543.8,1543.6,6.811]
[1673878838369,1.1904333,1543.8,1543.7,13.31378678]
[1673878839073,1.1904333,1543.8,1543.7,6.50278678]
[1673878839624,1.1904333,1543.8,1543.7,13.31378678]
[1673878839843,1.1904333,1543.8,1543.7,15.29956446]
[1673878840366,1.1904333,1543.8,1543.7,6.27278678]
[1673878840716,1.1904333,1543.8,1543.6,0.066]
[1673878840717,7.6679533,1543.8,1543.6,0.066]
[1673878840864,7.7669533,1543.8,1543.6,3.27278678]
[1673878841067,1.2894333,1543.8,1543.7,3.27278678]
[1673878841275,1.09555943,1543.8,1543.6,0.066]
[1673878841528,1.09555943,1543.8,1543.6,3.27278678]
[1673878842324,7.57309943,1543.8,1543.6,3.27278678]
[1673878842541,14.14963943,1543.8,1543.5,0.066]
[1673878842790,20.62717943,1543.8,1543.5,6.27278678]
[1673878842995,20.64713815,1543.8,1543.5,3.0]
[1673878843284,23.84631117,1543.8,1543.3,0.066]
[1673878843528,12.9534,1543.7,1543.1,0.0253283]
[1673878843761,19.45602872,1543.6,1543.2,3.27278678]
[1673878844071,19.55502872,1543.6,1543.2,3.27278678]
[1673878844559,19.55502872,1543.6,1543.2,3.80919829]
[1673878844764,0.099,1543.6,1543.3,3.27278678]
[1673878844980,0.003,1543.6,1543.4,3.27278678]
[1673878845333,12.95673,1543.6,1543.3,0.066]
[1673878845483,19.5341,1543.6,1543.3,3.27278678]
[1673878845857,6.57736,1543.6,1543.4,3.27278678]
[1673878846164,6.57736,1543.6,1543.5,3.27278678]
[1673878846165,0.099,1543.6,1543.5,3.27278678]
[1673878846379,19.53034,1543.7,1543.5,3.27278678]
[1673878846550,13.0524,1543.7,1543.6,3.27278678]
[1673878846941,13.0524,1543.7,1543.6,6.27278678]
[1673878847058,0.099,1543.7,1543.6,14.79553146]
[1673878847269,1.09555943,1543.8,1543.6,21.27389146]
[1673878847492,1.09555943,1543.8,1543.7,18.79172678]
[1673878847746,1.09555943,1543.8,1543.7,21.79172678]
[1673878847963,1.09555943,1543.8,1543.7,28.26966678]
[1673878848269,1.09555943,1543.8,1543.7,31.89924393]
[1673878848482,1.09555943,1543.8,1543.7,32.82496956]
[1673878848843,1.09555943,1543.8,1543.7,31.89924393]
[1673878850124,1.09555943,1543.8,1543.7,16.38030393]
[1673878850336,1.09555943,1543.8,1543.7,12.75072678]
[1673878851382,1.09555943,1543.8,1543.7,6.27278678]
[1673878853406,1.09555943,1543.8,1543.7,12.75072678]
[1673878853792,1.09555943,1543.8,1543.7,6.27278678]
[1673878854219,1.09555943,1543.8,1543.7,26.03966678]
[1673878854474,1.09555943,1543.8,1543.7,29.52804746]
[1673878854630,1.09555943,1543.8,1543.7,36.00598746]
[1673878855568,1.09555943,1543.8,1543.7,36.49228746]
[1673878856032,0.099,1544.2,1544.1,10.08378678]
[1673878856258,0.1298896,1544.3,1544.1,32.74256678]
[1673878856583,0.08731601,1544.6,1544.3,6.811]
[1673878856730,0.08731601,1544.6,1544.5,10.08378678]
[1673878856940,0.08731601,1544.6,1544.5,23.26294678]
[1673878857144,0.08731601,1544.6,1544.5,26.26294678]
[1673878858844,0.08731601,1544.6,1544.5,13.08378678]
[1673878859399,0.08731601,1544.6,1544.5,14.82876546]
[1673878859778,0.08731601,1544.6,1544.5,21.30334546]
[1673878860028,0.08731601,1544.6,1544.5,27.77792546]
[1673878863102,0.59408,1544.9,1544.7,6.811]
[1673878863327,0.59408,1544.9,1544.8,13.08378678]
[1673878863482,0.59408,1544.9,1544.8,33.81212546]
[1673878863664,0.59408,1544.9,1544.8,34.04212546]
[1673878864629,0.1071243,1545.0,1544.9,10.08378678]
[1673878864858,0.1071243,1545.0,1544.9,28.35360678]
[1673878866244,0.0552243,1545.0,1544.9,28.35360678]
[1673878866455,0.0552243,1545.0,1544.9,32.62106933]
[1673878867260,0.0606213,1545.0,1544.9,32.62106933]
[1673878868238,0.0606213,1545.0,1544.9,32.63650195]
[1673878868456,1.3006213,1545.0,1544.9,10.08378678]
[1673878868779,0.0606213,1545.0,1544.9,23.02960678]
[1673878870087,0.0606213,1545.0,1544.9,26.02960678]
[1673878870318,0.0606213,1545.0,1544.9,29.93376546]
[1673878870953,1.24773008,1545.4,1545.1,6.811]
[1673878871163,1.24773008,1545.4,1545.2,13.08378678]
[1673878871504,1.24773008,1545.4,1545.3,10.08378678]
[1673878871722,1.24773008,1545.4,1545.3,19.55501678]
[1673878871869,1.24773008,1545.4,1545.3,21.71711846]
[1673878872235,1.24773008,1545.4,1545.3,15.24588846]
[1673878872395,1.24773008,1545.4,1545.3,8.43488846]
[1673878872610,1.24773008,1545.4,1545.3,6.27278678]
[1673878873236,7.71854008,1545.4,1545.3,6.27278678]
[1673878873445,7.81754008,1545.4,1545.3,6.27278678]
[1673878874674,20.75916008,1545.4,1545.3,3.0]
[1673878874891,20.75916008,1545.4,1545.2,0.066]
[1673878874892,20.75916008,1545.4,1545.1,0.066]
[1673878875208,20.75916008,1545.4,1545.2,3.27278678]
[1673878875374,20.75916008,1545.4,1544.9,23.72645868]
[1673878875375,17.02583126,1545.4,1545.1,0.066]
[1673878875586,17.02583126,1545.4,1544.8,0.066]
[1673878875587,24.62868044,1545.4,1544.8,0.066]
[1673878875815,0.01995872,1545.3,1544.8,3.27278678]
[1673878876030,6.47176,1545.2,1544.9,3.27278678]
[1673878876361,0.099,1545.2,1545.0,3.27278678]
[1673878876591,0.003,1545.2,1545.1,3.60006546]
[1673878876894,14.28861008,1545.4,1545.1,3.60006546]
[1673878877199,1.34673008,1545.4,1545.2,3.27278678]
[1673878877410,1.24773008,1545.4,1545.3,3.27278678]
[1673878877625,1.24773008,1545.4,1545.3,8.27278678]
[1673878877936,1.24773008,1545.4,1545.3,6.27278678]
[1673878878091,1.24773008,1545.4,1545.3,3.0]
[1673878878300,14.34658011,1545.4,1545.1,3.066]
[1673878878511,7.8374988,1545.4,1545.2,3.27278678]
[1673878878768,7.8374988,1545.4,1544.9,0.066]
[1673878878769,7.8374988,1545.4,1545.3,3.27278678]
[1673878879360,14.3083088,1545.4,1545.1,0.066]
[1673878879602,14.3083088,1545.4,1545.1,3.27278678]
[1673878880227,16.39870998,1545.4,1545.0,0.066]
[1673878880573,16.88440998,1545.4,1545.0,3.27278678]
[1673878880769,16.88440998,1545.4,1545.1,3.0]
[1673878880989,20.15719676,1545.4,1545.0,0.066]
[1673878881135,17.53074916,1545.4,1544.7,3.0]
[1673878881350,1.75307492,1545.3,1544.8,3.27278678]
[1673878881603,19.41558,1545.2,1544.8,3.27278678]
[1673878881937,20.64671918,1545.2,1544.8,3.27278678]
[1673878882179,20.00038,1545.2,1544.8,3.27278678]
[1673878882331,13.52852,1545.2,1544.9,3.27278678]
[1673878882560,13.52852,1545.2,1545.0,3.27278678]
[1673878883104,13.52852,1545.2,1544.8,0.066]
[1673878883394,14.17485918,1545.2,1544.7,3.0]
[1673878883559,14.17485918,1545.2,1544.7,3.27278678]
[1673878883764,1.41748592,1545.1,1544.7,3.27278678]
[1673878884200,12.94514,1545.0,1544.6,3.066]
[1673878884416,13.04414,1545.0,1544.6,3.27278678]
[1673878884870,19.51671,1545.0,1544.6,3.27278678]
[1673878885397,2.0,1544.9,1544.5,4.58097868]
[1673878885609,7.70380918,1545.0,1544.6,3.73088465]
[1673878885767,6.47291,1544.9,1544.7,3.27278678]
[1673878886126,6.47291,1544.9,1544.6,0.066]
[1673878886127,19.51781,1544.9,1544.6,0.066]
[1673878886343,19.51781,1544.9,1544.5,3.0]
[1673878886495,19.51781,1544.9,1544.5,6.27278678]
[1673878886701,0.01995872,1544.8,1544.4,0.066]
[1673878886921,19.42149,1544.7,1544.4,3.27278678]
[1673878887210,19.52049,1544.7,1544.4,3.27278678]
[1673878887554,19.54044872,1544.7,1544.4,3.27278678]
[1673878887982,20.1867879,1544.7,1544.2,0.066]
[1673878888239,2.50467879,1544.6,1544.1,0.0715014]
[1673878888387,27.91911872,1544.5,1544.1,0.0715014]
[1673878888596,6.59374872,1544.5,1544.1,0.0715014]
[1673878888844,0.4861,1544.4,1544.2,3.27278678]
[1673878889182,7.07974872,1544.5,1544.3,3.27278678]
[1673878890239,0.099,1544.5,1544.4,3.27278678]
[1673878890410,15.7438,1544.6,1544.4,3.27278678]
[1673878890754,22.21796,1544.6,1544.3,0.39327868]
[1673878891065,28.69212,1544.6,1544.3,0.3249531]
[1673878891223,28.69212,1544.6,1544.1,3.0715014]
[1673878891434,22.21796,1544.6,1544.2,3.27278678]
[1673878891702,22.21796,1544.6,1544.3,3.0]
[1673878892068,28.69212,1544.6,1544.3,3.0]
[1673878892482,22.21796,1544.6,1544.3,6.27278678]
[1673878892697,28.69212,1544.6,1544.3,6.90666546]
[1673878893168,29.17812,1544.6,1544.2,0.066]
[1673878893327,2.0,1544.5,1544.1,0.0715014]
[1673878893534,2.01995872,1544.5,1544.1,0.0715014]
[1673878893740,19.42527,1544.4,1544.1,0.0715014]
[1673878894021,19.52427,1544.4,1544.1,0.0715014]
[1673878894391,6.47584,1544.2,1544.1,0.0715014]
[1673878894753,6.57484,1544.2,1544.1,0.0715014]
[1673878895190,13.05068,1544.2,1544.1,0.0715014]
[1673878895326,23.679145,1544.2,1544.1,0.0715014]
[1673878896061,24.165245,1544.2,1544.1,0.0715014]
[1673878896272,26.08344338,1544.2,1544.1,0.0715014]
[1673878897057,26.1034021,1544.2,1544.1,0.0715014]
[1673878897390,24.18520372,1544.2,1544.1,0.0715014]
[1673878897615,26.1034021,1544.2,1544.1,0.0715014]
[1673878897754,24.18520372,1544.2,1544.1,0.0715014]
[1673878898123,26.1034021,1544.2,1544.1,0.0715014]
[1673878898522,24.18520372,1544.2,1544.1,0.0715014]
[1673878898908,24.165245,1544.2,1544.1,0.0715014]
[1673878899157,22.01262,1544.2,1544.1,0.0715014]
[1673878899541,13.05068,1544.2,1544.1,0.0715014]
[1673878899973,19.52652,1544.2,1544.1,0.0715014]
[1673878900388,13.05068,1544.2,1544.1,0.0715014]
[1673878900625,19.52652,1544.2,1544.1,0.0715014]
[1673878900844,22.612829,1544.2,1544.1,0.0715014]
[1673878902701,23.25916818,1544.2,1544.1,0.0968297]
[1673878904600,23.2791269,1544.2,1544.1,0.0968297]
[1673878905053,2.0,1544.1,1543.7,0.0794069]
[1673878905275,2.0,1543.9,1543.7,0.0794069]
[1673878905561,19.43256,1543.8,1543.7,0.0794069]
[1673878905751,20.01776,1543.8,1543.7,0.0794069]
[1673878905967,20.66409918,1543.8,1543.7,0.0794069]
[1673878906180,23.59820182,1543.8,1543.7,0.0794069]
[1673878906579,20.03771872,1543.8,1543.7,0.0794069]
[1673878906790,13.05404,1543.8,1543.7,0.0794069]
[1673878907903,6.57652,1543.8,1543.7,0.0794069]
[1673878908593,19.53156,1543.8,1543.7,0.0794069]
[1673878909333,13.05404,1543.8,1543.7,0.0794069]
[1673878910370,21.484698,1543.8,1543.7,0.0794069]
[1673878911017,13.05404,1543.8,1543.7,0.0794069]
[1673878911432,6.57652,1543.8,1543.7,0.0794069]
[1673878911676,0.099,1543.8,1543.7,4.55919368]
[1673878911888,16.0951,1544.0,1543.7,4.55919368]
[1673878911889,6.47724,1543.9,1543.7,1.2864069]
[1673878912048,13.05353,1543.9,1543.7,1.2864069]
[1673878912258,13.05353,1543.9,1543.7,0.0794069]
[1673878914934,0.099,1543.9,1543.7,0.0794069]
[1673878915149,35.62496,1544.0,1543.7,0.0794069]
[1673878915682,16.1941,1544.0,1543.7,13.48794647]
[1673878916056,16.1941,1544.0,1543.7,15.48794647]
[1673878916681,16.1941,1544.0,1543.8,3.27278678]
[1673878917145,16.1941,1544.0,1543.8,5.27278678]
[1673878918145,16.1941,1544.0,1543.8,7.47596043]
[1673878918373,16.1941,1544.0,1543.9,6.27278678]
[1673878918374,0.099,1544.0,1543.9,6.27278678]
[1673878918592,13.0512,1544.2,1543.9,6.75898678]
[1673878918815,19.42886,1544.1,1543.9,3.4862]
[1673878919034,19.42886,1544.1,1543.9,3.0]
[1673878919035,19.52786,1544.1,1543.9,3.0]
[1673878919346,22.128249,1544.1,1543.9,3.0]
[1673878919562,22.128249,1544.1,1543.7,0.1454069]
[1673878919774,19.52786,1544.1,1543.7,3.35219368]
[1673878919933,19.52786,1544.1,1543.8,3.0]
[1673878921034,19.52779,1544.1,1543.8,6.27278678]
[1673878921569,6.57526,1544.1,1543.8,12.75029678]
[1673878921711,6.57526,1544.1,1543.8,15.33540715]
[1673878923095,0.099,1544.1,1543.9,3.27278678]
[1673878923304,0.099,1544.2,1544.0,6.27278678]
[1673878923503,2.02968677,1544.3,1544.0,16.22614678]
[1673878923708,1.93068677,1544.3,1544.1,9.47619]
[1673878924474,1.93068677,1544.3,1544.1,3.0]
[1673878925123,1.93068677,1544.3,1544.1,21.80213046]
[1673878925552,1.93068677,1544.3,1544.1,28.27839046]
[1673878925717,1.93068677,1544.3,1544.1,21.80213046]
[1673878927934,1.93068677,1544.3,1544.1,3.0]
[1673878928157,8.40611677,1544.3,1544.0,3.066]
[1673878928372,8.40611677,1544.3,1543.9,0.066]
[1673878928373,21.45596677,1544.3,1543.9,0.066]
[1673878928606,23.38843487,1544.3,1543.9,3.27278678]
[1673878928970,23.38843487,1544.3,1543.9,3.27062697]